Cogmind - Beta 15 @@@ ROGUE MODE // 2025.05.25 @ 16:06:12 Player: Elias Result: Destroyed by Y-45 Defender with Heavy Assault Rifle Performance ------------- Evolutions (1) 500 Regions Visited (4) 800 Robots Destroyed (23) 115 Value Destroyed (227) 227 Prototype IDs (0) 0 Alien Tech Used (0) 0 Bonus (0) 0 TOTAL SCORE: 1642 Bonus ------- None Cogmind --------- Core Integrity 0/400 Matter 276/300 Energy 100/100 System Corruption 0% Temperature Cool (0) Movement Core (200) Ox3 Location -9/Storage Parts ------- > --- POWER (1) -------- (None) > --- PROPULSION (3) --- (None) > --- UTILITY (3) ------ Medium Storage Unit > --- WEAPON (2) ------- (None) > --- INVENTORY (10) --- Aluminum Leg Aluminum Leg Cooling System Melee Analysis Suite Melee Analysis Suite Melee Analysis Suite Particle Gun Light Assault Rifle Peak State ------------ > --- POWER ------------ Light Ion Engine > --- PROPULSION ------- Airjet Airjet Airjet > --- UTILITY ---------- Medium Storage Unit Weight Redist. System Authchip [Propulsion] > --- WEAPON ----------- Pulse Rifle Light Assault Rifle > --- INVENTORY -------- Light Ion Engine Aluminum Leg Aluminum Leg Airjet Cooling System Melee Analysis Suite Melee Analysis Suite Melee Analysis Suite Particle Gun Light Assault Rifle [Rating: 23] Favorites ----------- Power Light Ion Engine Engine Light Ion Engine Propulsion Flight Unit Leg Aluminum Leg Hover Unit Airjet Flight Unit Flight Unit Utility Weight Redist. System Device Weight Redist. System Storage Medium Storage Unit Processor Melee Analysis Suite Hackware Authchip [Propulsion] Weapon Light Assault Rifle Energy Gun Medium Laser Ballistic Gun Light Assault Rifle Build | -11 -10 -10 -9 -9 ------- Run | Yrd Mat Min Mat Sto Slots Evolved 2 | . . . 2 . Power . | . . . . . Propulsion 1 | . . . 1 . Utility 1 | . . . 1 . Weapon . | . . . . . Parts Attached 28 | 7 7 1 11 2 Power 3 | 1 . 1 . 1 Engine 3 | 1 . 1 . 1 Core . | . . . . . Reactor . | . . . . . Propulsion 12 | 2 4 . 5 1 Treads . | . . . . . Leg 2 | 2 . . . . Wheel . | . . . . . Hover 4 | . . . 3 1 Flight 6 | . 4 . 2 . Utility 7 | 1 3 . 3 . Device 3 | . 2 . 1 . Storage 2 | 1 1 . . . Processor 1 | . . . 1 . Hackware 1 | . . . 1 . Protection . | . . . . . Artifact . | . . . . . Weapon 6 | 3 . . 3 . Energy Gun 3 | 1 . . 2 . Energy Cannon . | . . . . . Ballistic Gun 3 | 2 . . 1 . Ballistic Cannon . | . . . . . Launcher . | . . . . . Special Weapon . | . . . . . Impact Weapon . | . . . . . Slashing Weapon . | . . . . . Piercing Weapon . | . . . . . Special Melee Weapon . | . . . . . Unidentified Prototypes . | . . . . . Parts Lost 10 | . . . . 10 Power 2 | . . . . 2 Propulsion 4 | . . . . 4 Utility 2 | . . . . 2 Weapon 2 | . . . . 2 Highest Loss Streak 10 | . . . . 10 To Critical Strikes 1 | . . . . 1 Average Backups 7 | 3 7 9 9 9 Power . | . 1 1 1 . Propulsion 3 | 1 3 4 3 2 Utility 1 | . 1 2 3 4 Weapon 1 | . 1 2 2 2 Tool/Special . | . . . . . Unused Backups 5 | . 2 . . 3 Power . | . . . . . Propulsion 2 | . 2 . . . Utility 3 | . . . . 3 Weapon . | . . . . . Tool/Special . | . . . . . Average Slot Usage (%) 95 | . 99 86 95 88 Engine 12 | . 14 14 11 8 Leg 5 | . 11 . . . Hover 9 | . . . 22 30 Flight 14 | . 16 28 11 . Device 12 | . 14 14 11 7 Storage 12 | . 14 14 11 11 Hackware 3 | . . . 7 11 Energy Gun 10 | . 14 1 9 9 Ballistic Gun 12 | . 14 14 12 8 Peak Build Rating 23 | 6 10 9 23 23 Average Rating 11 | 4 9 8 18 19 On Entrance 9 | . 6 9 8 22 Naked Turns . | . . . . . Heaviest Build 17 | 12 16 16 17 17 Greatest Support 30 | 20 26 14 30 30 Greatest Overweight (x) 3 | 3 1 1 1 3 Average Overweight (x) . | . . . . . Largest Inventory Capacity 10 | 8 10 10 10 10 Average Capacity 9 | 7 8 10 10 10 Most Carried 10 | 5 9 10 10 10 Average Carried 7 | 3 7 9 9 9 Final Capacity 10 | 8 10 10 10 10 Final Carried 10 | 5 8 10 10 8 Class Distribution -------------------- 73% | Mutant 26% | Scavenger-Mutant Dominant Class ---------------- Mutant | -10/Materials Scavenger-Mutant | -10/Mines Mutant | -9/Materials Mutant | -9/Storage Resources | -11 -10 -10 -9 -9 ----------- Run | Yrd Mat Min Mat Sto Matter Collected 563 | 181 238 61 83 . Remotely . | . . . . . Salvage Created 573 | 156 374 43 . . Parts 56 | 18 32 6 . . Haulers Intercepted 2 | . 2 . . . Recyclers Shooed 2 | 1 1 . . . Parts Field Recycled . | . . . . . Retrieved Matter . | . . . . . Parts Self-Destructed . | . . . . . Prevented . | . . . . . Kills | -11 -10 -10 -9 -9 ------- Run | Yrd Mat Min Mat Sto Combat Hostiles Destroyed 11 | . 8 3 . . Guns 11 | . 8 3 . . Classes Destroyed 8 | 3 5 . . . Worker 3 | 2 1 . . . Tunneler 3 | 3 . . . . Hauler 2 | . 2 . . . Recycler 2 | 1 1 . . . Mechanic 1 | . 1 . . . Watcher 1 | . 1 . . . Swarmer 9 | . 6 3 . . Grunt 2 | . 2 . . . Best Kill Streak 6 | 4 6 3 . . Combat Bots Only 3 | . 3 3 . . Max Kills in Single Turn 1 | 1 1 1 . . Gunslinging . | . . . . . Exploded . | . . . . . Melee . | . . . . . Uniques/NPCs Destroyed . | . . . . . Combat | -11 -10 -10 -9 -9 -------- Run | Yrd Mat Min Mat Sto Hostile Shots Fired 136 | . 25 3 6 102 Missed 50 | . 12 . 4 34 Hits 86 | . 13 3 2 68 Projectile 86 | . 13 3 2 68 Critical Strikes 2 | . . . . 2 Damage Taken 1109 | . 117 22 30 940 Core 447 | . 27 10 18 392 Absorbed by Shields . | . . . . . Core Remaining (%) 92 | 100 . 85 . . Volleys Fired 57 | 16 31 3 . 7 Largest 2 | 2 2 1 . 2 Hottest 85 | 70 70 20 . 85 Shots Fired 111 | 32 62 3 . 14 Gun 111 | 32 62 3 . 14 Cannon . | . . . . . Launcher . | . . . . . Special . | . . . . . Kinetic 57 | 16 31 3 . 7 Thermal 54 | 16 31 . . 7 Explosive . | . . . . . Electromagnetic . | . . . . . Robot Hit Streak 16 | 5 16 5 . 6 Robot Miss Streak 3 | 3 3 . . 1 Penetration Max . | . . . . . Secondary Targets . | . . . . . Shots Hit Robots 55 | 17 34 3 . 1 Core Hits 30 | 7 20 3 . . Critical Kills . | . . . . . Critical Parts Destroyed 1 | . 1 . . . Critical Strikes 2 | . 2 . . . Burn 1 | . 1 . . . Destroy 1 | . 1 . . . Melee Attacks . | . . . . . Impact . | . . . . . Slashing . | . . . . . Piercing . | . . . . . Sneak Attacks . | . . . . . Combat Hostiles . | . . . . . Follow-up Attacks . | . . . . . Damage Inflicted 643 | 214 385 27 . 17 Guns 643 | 214 385 27 . 17 Cannons . | . . . . . Explosions . | . . . . . Melee . | . . . . . Ramming . | . . . . . Kinetic 335 | 137 171 27 . . Thermal 308 | 77 214 . . 17 Explosive . | . . . . . Electromagnetic . | . . . . . Impact . | . . . . . Slashing . | . . . . . Piercing . | . . . . . Highest Corruption . | . . . . . Average Corruption . | . . . . . Corruption Purged . | . . . . . Corruption Blocked . | . . . . . Overload Shots . | . . . . . Overflow Damage . | . . . . . Projectiles . | . . . . . Explosions . | . . . . . Melee . | . . . . . Knockbacks . | . . . . . Impact . | . . . . . Kinetic . | . . . . . Secondary . | . . . . . Self-Inflicted Damage . | . . . . . Shots . | . . . . . Rammed . | . . . . . Targets Rammed . | . . . . . Kicked . | . . . . . Crushed . | . . . . . Highest Temperature 183 | 54 138 2 . 183 Average Temperature 45 | 20 42 2 . 93 Received Heat Transfer 336 | . 24 . 6 306 Siege Activations . | . . . . . Martial Activations . | . . . . . Shielding Activations . | . . . . . Robots Disrupted . | . . . . . Combat Hostiles . | . . . . . Robots Corrupted . | . . . . . Combat Hostiles . | . . . . . Parts Fried . | . . . . . Impact Corruptions . | . . . . . Robots Melted . | . . . . . Combat Hostiles . | . . . . . Parts Melted 1 | . 1 . . . Heat Transferred 962 | 222 703 . . 37 Parts Sabotaged . | . . . . . Parts Stolen . | . . . . . Parts Stripped . | . . . . . Power Chain Reactions . | . . . . . Alert | -11 -10 -10 -9 -9 ------- Run | Yrd Mat Min Mat Sto Maximum Alert Level . | . . . . . Low Security (%) 100 | 100 100 100 100 100 Level 1 . | . . . . . Level 2 . | . . . . . Level 3 . | . . . . . Level 4 . | . . . . . Level 5 . | . . . . . High Security . | . . . . . Max Security . | . . . . . Peak Influence 139 | 20 139 87 30 30 Initial 27 | . . 27 26 2 Average 36 | 3 68 48 12 5 Influence Increases 413 | 30 231 70 37 45 Destroy 0b10 Robot/C 220 | . 160 60 . . Destroy 0b10 Robot/NC 60 | 30 30 . . . Destroy Leader 36 | . 26 10 . . Successful Hack 7 | . . . 7 . Partial Spotted 15 | . . . . 15 Lose Combat Pursuer 75 | . 15 . 30 30 Influence Decreases 413 | 30 160 74 97 52 Entered New Map 90 | . . 44 41 5 Time Decay 293 | 30 160 30 56 17 Lost Part 30 | . . . . 30 Squads Dispatched 1 | . . . . 1 Investigation . | . . . . . Extermination . | . . . . . Reinforcement . | . . . . . Assault . | . . . . . Garrison 1 | . . . . 1 Intercept . | . . . . . Searches Triggered . | . . . . . Construction Impeded . | . . . . . Haulers Reinforced . | . . . . . Active Scanning Responses . | . . . . . Cargo Convoy Interrupts . | . . . . . Stealth | -11 -10 -10 -9 -9 --------- Run | Yrd Mat Min Mat Sto Distress Signals 1 | . . . . 1 Communications Jammed . | . . . . . Distress Signals . | . . . . . Times Spotted 36 | . 11 3 9 13 Peak Tracking Total 13 | . 3 3 6 13 Tactical Retreats 3 | . 1 . 1 1 Traps | -11 -10 -10 -9 -9 ------- Run | Yrd Mat Min Mat Sto Traps Triggered 1 | . 1 . . . Indirectly . | . . . . . Trap Hack Attempts . | . . . . . Triggered . | . . . . . Disarmed . | . . . . . Reprogrammed . | . . . . . Reused . | . . . . . Traps Extracted . | . . . . . Installed . | . . . . . Triggered . | . . . . . Machines | -11 -10 -10 -9 -9 ---------- Run | Yrd Mat Min Mat Sto Machines Disabled . | . . . . . Max in Single Turn . | . . . . . Machines Repaired . | . . . . . Machines Dismantled . | . . . . . Machines Sabotaged . | . . . . . Overloaded Fab Kills . | . . . . . Hacking | -11 -10 -10 -9 -9 --------- Run | Yrd Mat Min Mat Sto Machines Accessed 3 | . 1 . 2 . Terminals 1 | . . . 1 . Fabricators . | . . . . . Repair Stations . | . . . . . Recycling Units 1 | . 1 . . . Scanalyzers 1 | . . . 1 . Garrison Access . | . . . . . Total Hacks 7 | . 3 . 4 . Successful 3 | . . . 3 . Failed 4 | . 3 . 1 . Catastrophic . | . . . . . Database Lockouts . | . . . . . Manual . | . . . . . Terminals 2 | . . . 2 . Fabricators . | . . . . . Repair Stations . | . . . . . Recycling Units 3 | . 3 . . . Scanalyzers 2 | . . . 2 . Garrison Access . | . . . . . Terminal Hacks 2 | . . . 2 . Alert Level 1 | . . . 1 . Registered Components 1 | . . . 1 . Fabricator Hacks . | . . . . . Repair Station Hacks . | . . . . . Recycling Unit Hacks . | . . . . . Scanalyzer 1 | . . . 1 . Insert Component 1 | . . . 1 . Garrison Access Hacks . | . . . . . Unauthorized Hacks . | . . . . . Terminals . | . . . . . Fabricators . | . . . . . Repair Stations . | . . . . . Recycling Units . | . . . . . Scanalyzers . | . . . . . Garrison Access . | . . . . . Data Cores Recovered . | . . . . . Used . | . . . . . Hacking Detections 1 | . 1 . . . Full Trace Events 1 | . 1 . . . Feedback Events . | . . . . . Feedback Blocked . | . . . . . Robot Schematics Acquired . | . . . . . Robots Built . | . . . . . Authchips . | . . . . . Time . | . . . . . Total Robot Build Rating . | . . . . . Part Schematics Acquired . | . . . . . Parts Built . | . . . . . Authchips . | . . . . . Time . | . . . . . Total Part Build Rating . | . . . . . Parts Repaired . | . . . . . Time . | . . . . . Parts Recycled . | . . . . . Recycled Matter . | . . . . . Retrieved Matter . | . . . . . Retrieved Components . | . . . . . Parts Scanalyzed . | . . . . . Part Schematics Acquired . | . . . . . Parts Damaged . | . . . . . Bothacking | -11 -10 -10 -9 -9 ------------ Run | Yrd Mat Min Mat Sto Used RIF Installer . | . . . . . Robots Hacked . | . . . . . Non-combat . | . . . . . Combat . | . . . . . Robot Hacks Applied . | . . . . . Relay Couplers Released . | . . . . . Fabnet Peak Effective % . | . . . . . Robots Rewired . | . . . . . Allies Hacked . | . . . . . Hacks Repelled . | . . . . . Allies | -11 -10 -10 -9 -9 -------- Run | Yrd Mat Min Mat Sto Total Allies . | . . . . . Largest Group . | . . . . . Highest-Rated Group . | . . . . . Highest-Rated Ally . | . . . . . Total Orders . | . . . . . Ally Attacks . | . . . . . Total Damage . | . . . . . Kills . | . . . . . Allies Corrupted . | . . . . . Allies Melted . | . . . . . Intel | -11 -10 -10 -9 -9 ------- Run | Yrd Mat Min Mat Sto Active Infowar (turns) 88 | . 88 . . . Terrain 88 | . 88 . . . Robot Analysis Total . | . . . . . Derelict Logs Recovered . | . . . . . Drone Launches . | . . . . . Drone Recoveries . | . . . . . Exploration | -11 -10 -10 -9 -9 ------------- Run | Yrd Mat Min Mat Sto Turns Passed 875 | 161 369 70 183 92 Spaces Moved 888 | 82 207 158 324 117 Core 35 | 32 . . . 3 Treads . | . . . . . Legs 98 | 50 48 . . . Wheels . | . . . . . Hover 324 | . . . 210 114 Flight 431 | . 159 158 114 . Fastest Speed 32 | 50 37 37 32 52 Average Speed 67 | 116 111 37 45 58 Slowest Speed 200 | 200 130 117 120 200 Overloaded Moves . | . . . . . Propulsion Burnouts . | . . . . . Robots Hopped 2 | . . 2 . . Potential Cave-ins . | . . . . . Cave-ins Triggered . | . . . . . Exploration Rate (%) 20 | 4 24 28 25 21 Regions Visited 4 Branch Regions 2 Pre-discovered Areas . | . . . . . Known Exits Taken . | . . . . . Unknown Exits Taken 4 | 1 1 1 1 . Scrap Searched 1 | . . 1 . . Spaces Dug . | . . . . . Terrain Destroyed . | . . . . . Melee . | . . . . . Projectile . | . . . . . AOE . | . . . . . Terrain Rammed . | . . . . . Walls Destroyed . | . . . . . Machines Disabled . | . . . . . Actions | -11 -10 -10 -9 -9 --------- Run | Yrd Mat Min Mat Sto Total 1051 | 115 287 164 358 127 Wait 40 | . 29 2 9 . Move 880 | 81 206 153 323 117 Hop 2 | . . 2 . . Pick Up 27 | 11 7 1 8 . Fast Attach 1 | . . . 1 . Attach 13 | 6 2 . 3 2 Detach 2 | . . 1 1 . Swap 19 | 1 8 1 8 1 Drop 10 | . 4 1 5 . Fire 57 | 16 31 3 . 7 Melee . | . . . . . Ram . | . . . . . Kick . | . . . . . Crush . | . . . . . Escape Stasis . | . . . . . Rewire . | . . . . . Trap . | . . . . . Miscellaneous . | . . . . . Route ------- -11/Scrapyard -10/Materials -10/Mines -9/Materials -9/Storage History --------- Turn | Location | Event 13 | -11/Scrapyard | Discovered new exit (range 16) 162 | -11/Scrapyard | Entered Materials 324 | -10/Materials | Build established: Mutant 444 | -10/Materials | Discovered new exit (range 16) 531 | -10/Materials | Entered Mines 541 | -10/Mines | Met a Derelict bent on vengeance 590 | -10/Mines | Discovered new exit (range 15) 601 | -10/Mines | Entered Materials 601 | -9/Materials | Evolved 2 slots: Propulsion x1, Utility x1 778 | -9/Materials | Discovered new exit (range 9) 784 | -9/Materials | Entered Storage 819 | -9/Storage | Garrison activated, responded to threat 871 | -9/Storage | Core integrity fell below 50% 874 | -9/Storage | Core integrity fell below 20% 876 | -9/Storage | Destroyed by Y-45 Defender with Heavy Assault Rifle Last Messages --------------- 00778_ EXIT=FOUND 00782_ K-01 Serf collects debris. LOCATION=UNKNOWN GOAL=ESCAPE 00788_ K-01 Serf collects debris. 00817_ K-01 Serf cleans the Storage Shell. 00819_ K-01 Serf calls for garrison support. 00819_ ALERT: Activating Garrison Access S001. 00820_ K-01 Serf sends out distress signal. 00838_ Lgt. Ion Engine destroyed. 00843_ Weight Redist. System destroyed. 00856_ Critical hit (Destroy). 00856_ Lgt. Assault Rifle destroyed. 00861_ Lgt. Ion Engine destroyed. 00862_ Airjet destroyed. 00865_ Pulse Rifle destroyed. 00865_ Critical hit (Burn: +37). 00867_ U-05 Engineer destroyed. 00870_ Airjet destroyed. 00873_ Authchip [Propulsion] destroyed. Map ----- +----------------------------------------------------+ | | | | | | | | | | | | | | | | | | | | | | | | | ?????????????????????????????????????????????????? | | ?????????????????????????????????????????????????? | | ?????????????????????????????????????????????????? | | ???????????????###########???????????????????????? | | ???????????????# """"" #???????????????????????? | | ??#####????????# """"" #???????????????????????? | | ??# #????????# """"" #???????????????????????? | | ??# #????????# #???????????????????????? | | ??# #????????# #???????????????????????? | | ??# #????????# #???????????????????????? | | ??# #?????????? ###"###?????????????????? | | ??# #???????????? ??? T#???#######???????? | | ??# ###############+#######;###### #???????? | | ??# %| Y@ Y #???????? | | ??# = Y Y YYY #???????? | | ??# g Y a g g #???????? | | ??########### #####+############## #???????? | | ?????? # #?? ?????????#####/#####?????? | | ???????" # ## """" ????????#=== #?????? | | ????????" # ## """" Y???????#== ! #?????? | | ????????"" # ## """" ""#?????#== #?????? | | ?????????" / ## """" ###?????# """ #?????? | | ?????????" # ## #???????#" """ #?????? | | ??# """" # / """"?????????#T """ #?????? | | ??# / ## """"?????????#" #?????? | | ????######### #???""""?????????# #?????? | | ????????????## ##?????"??????????######## ##?????? | | ?????????????# #????????????????????????###??????? | | ?????????????# #?????????????????????????????????? | | ?????????????# #?????????????????????????????????? | | ?????????????# #?????????????????????????????????? | | ?????????????# #?????????????????????????????????? | | ????????????? ?????????????????????????????????? | | ????????????? ?????????????????????????????????? | | ????????????? ?????????????????????????????????? | | ?????????????# #?????????????????????????????????? | | ?????????????? ??????????????????????????????????? | | ?????????????? ??????????????????????????????????? | +----------------------------------------------------+ Best States ------------- Heat Dissipation 28 Energy Generation 10 Energy Capacity 125 Matter Stores 300 Matter Capacity 300 Sight Range 16 Terrain Scan Range 16 Terrain Scan Density 10 Additional Mass Support 6 Evasion (%) 63 Authchip Count 1 Item Schematics ----------------- None Robot Schematics ------------------ None Fabricated ------------ Nothing Repaired ---------- Nothing Alien Tech Used ----------------- None Achievements -------------- None Challenges ------------ None Game ------ Seed ThunderWeaponBoomstick Manual? 0 Play Time 00:18:08 Cumulative 10.2 hours Start 2025.05.25 @ 15:49:18 End 2025.05.25 @ 16:06:12 Sessions 1 Manual Loads 0 Difficulty Rogue Special Mode None Game No. 12 Rogue 12 Adventurer 0 Explorer 0 Win Type - Total 0 Types 0/0/0/0/0/0/0/0/0/0 Lore% 15 Gallery% 15 Achievement% 16 Wizard Run 0 Options --------- Layout 0 ASCII 0 Keyboard 0 Movement Arrows Keybinds 0 Fullscreen 1 Font 18/SmallcapsGlow Map View 76x50 Zoom Use 0% Tactical HUD 1 Map Filters NONE Filters NONE Steam 1 RUN: c07296c3-d6a6-4628-872f-35bb10cd37fc